fUSD/lending_fUSD_20241004
["ID","MTS","AMOUNT","RATE_DAILY","PERIOD"]
[339809820,1728006632645,-1000.0,0.00010999,2]
[339809823,1728006632654,-1602.86331289,0.00010999,2]
[339809825,1728006632664,-181555.27766213,0.00011,2]
[339809829,1728006632676,-798.80351269,0.00011,2]
[339809831,1728006632687,-740.92247857,0.00011,2]
[339809834,1728006632697,-912.38802639,0.00011,2]
[339809837,1728006632715,-966.43463374,0.00011,2]
[339809840,1728006632728,-618.03494291,0.00011,2]
[339809843,1728006632738,-939.33967685,0.00011,2]
[339809847,1728006632749,-341.42630098,0.00011,2]
[339809849,1728006632760,-925.07724057,0.00011,2]
[339809852,1728006632770,-19232.09862513,0.00011,2]
[339809855,1728006632781,-40925.91084942,0.00011,2]
[339809859,1728006632797,-1097.45660819,0.00011,2]
[339809861,1728006632808,-508.47198714,0.00011,2]
[339809863,1728006632819,-704.86,0.00011,2]
[339809875,1728006640254,-4957.06848104,0.00011,2]
[339809876,1728006640590,-1332.05859934,0.00011,2]
[339809879,1728006640601,-821.3306756,0.00011,2]
[339809881,1728006640611,-356.41999999,0.00011,2]
[339809883,1728006640622,-1639.5745071,0.00011,2]
[339809918,1728006643333,-445.41059929,0.00011,2]
[339809919,1728006643345,-715.30133553,0.00011,2]
[339809920,1728006643669,-1644.15129456,0.00011,2]
[339809921,1728006643681,-1575.75,0.00011,2]
[339809923,1728006646490,-29239.265973,0.00011,2]
[339809924,1728006768352,5955.099,0.00010126,2]
[339809925,1728007012981,270.58,9.147e-05,2]
[339809926,1728007118255,150.0,0.00010225,2]
[339809996,1728007552042,257.05,8.595e-05,2]
[339809999,1728007832412,-250.0,0.00010402,2]
[339810001,1728007832422,-1021.54588733,0.00010491,2]
[339810002,1728007832431,-224.83,0.00010517,2]
[339810003,1728007832441,-247.58,0.00010591,2]
[339810004,1728007832450,-220.65194844,0.00010673,2]
[339810005,1728007832459,-1823.93749952,0.00010733,2]
[339810006,1728007832592,-434.34121618,0.00010733,2]
[339810007,1728007832605,-3625.5212843,0.00010733,2]
[339810008,1728007832614,-1149.908,0.00010733,2]
[339810009,1728007832624,-5.59339706,0.00010733,2]
[339810054,1728007838371,-147.62460294,0.00010733,2]
[339810055,1728007838380,-13508.0,0.00010733,2]
[339810057,1728007838389,-151.214,0.0001078,2]
[339810058,1728007838398,-1000.0,0.00010838,2]
[339810059,1728007838408,-257.05,0.00010859,2]
[339810060,1728007838417,-3325.8329,0.000109,2]
[339810062,1728007838427,-5391.89176392,0.000109,2]
[339810065,1728007838435,-179.89968722,0.000109,2]
[339810068,1728007838446,-159.94514988,0.000109,2]
[339810070,1728007838455,-150.0,0.00010939,2]
[339810072,1728007838464,-499.99,0.00010939,2]
[339810073,1728007838473,-19936.70765065,0.0001094,2]
[339810075,1728007838484,-13895.84564796,0.0001094,2]
[339810076,1728007838493,-160.59,0.00010959,2]
[339810078,1728007838502,-250.0,0.00010959,2]
[339810080,1728007838511,-153.27,0.0001099,2]
[339810082,1728007838521,-3650.4645181,0.00010996,2]
[339810083,1728007838531,-622.939671,0.00010996,2]
[339810084,1728007838540,-1000.0,0.00010999,2]
[339810085,1728007838550,-2716.28916403,0.00010999,2]
[339810086,1728007838560,-26155.52120271,0.00011,2]
[339810087,1728007838789,-646.8411,0.00011,2]
[339810089,1728007840701,-4279.44097327,0.00011,2]
[339810090,1728007840712,-804.81,0.00011,2]
[339810091,1728007840723,-1631.9911008,0.00011,2]
[339810092,1728007840734,-2147.11952589,0.00011,2]
[339810120,1728007843836,-20044.0593042,0.00011,2]
[339810122,1728007844038,-12558.2495266,0.00011,2]
[339810127,1728007846521,-359.63081038,0.00011,2]
[339810128,1728007846532,-1280.81103182,0.00011,2]
[339810132,1728007846970,-753.68927655,0.00011,2]
[339810133,1728008060899,264.42,8.275e-05,2]
[339810134,1728008077432,250.0,0.00010192,2]
[339810135,1728008091489,500.0,0.00010135,2]
[339810136,1728008094806,334.32090104,0.00010204,2]
[339810137,1728008149907,156.56,0.0001007,2]
[339810138,1728008150318,156.56,0.00010075,2]
[339810139,1728008150622,156.56,0.00010079,2]
[339810140,1728008150835,156.56,0.00010084,2]
[339810141,1728008151049,156.56,0.00010088,2]
[339810142,1728008151298,156.56,0.00010093,2]
[339810143,1728008151495,156.56,0.00010098,2]
[339810144,1728008151732,156.56,0.00010102,2]
[339810145,1728008152024,156.56,0.00010107,2]
[339810146,1728008152274,156.56,0.00010111,2]
[339810147,1728008152464,156.56,0.00010116,2]
[339810148,1728008152692,156.56,0.0001012,2]
[339810149,1728008158684,658.47,0.00010031,2]
[339810150,1728008174003,1852.42,0.00010031,2]
[339810151,1728008209870,1240.76,0.00010031,2]
[339810152,1728008231224,324.3,0.00010026,2]
[339810153,1728008233676,261.99,0.00010015,2]
[339810154,1728008239272,591.75,9.978e-05,2]
[339810155,1728008266841,3501.34,9.978e-05,2]
[339810156,1728008341151,2057.79,9.986e-05,2]
[339810157,1728008436058,23890.0,9.965e-05,2]
[339810158,1728008468898,250.0,9.965e-05,2]
[339810159,1728008498575,1000.0,0.00010002,2]
[339810160,1728008610236,200.0,0.00010017,2]
[339810161,1728008638140,251.19,8.219e-05,2]
[339810162,1728008808467,3961.19,0.00010189,2]
[339810182,1728008991595,250.0,0.00010021,2]
[339810184,1728009025295,173.11,0.00010077,2]
[339810186,1728009031635,-261.99,0.0001024,2]
[339810187,1728009031644,-170.46,0.00010304,2]
[339810188,1728009031653,-900.0,0.000104,3]
[339810189,1728009031662,-251.19,0.00010479,2]
[339810190,1728009031672,-308.32129736,0.000105,3]
[339810191,1728009031682,-1017.31216564,0.000105,3]
[339810193,1728009031694,-428.6169729,0.000105,3]
[339810195,1728009031706,-145.7495641,0.000105,3]
[339810197,1728009031715,-317.3004359,0.000105,2]
[339810203,1728009031762,-5592.47481805,0.000105,2]
[339810204,1728009031771,-2800.0,0.000106,3]
[339810205,1728009031780,-218.025,0.00010634,2]
[339810206,1728009031789,-499.99,0.000107,2]
[339810207,1728009031798,-3800.0,0.000107,3]
[339810208,1728009031807,-2021.81682521,0.000107,2]
[339810209,1728009031817,-377.86782155,0.000107,2]
[339810210,1728009031828,-2775.93535324,0.000107,2]
[339810211,1728009031837,-299.99,0.000107,2]
[339810212,1728009031846,-962.5376,0.000108,2]
[339810213,1728009031855,-4700.0,0.000108,3]
[339810214,1728009031864,-1001.53933998,0.00010899,2]
[339810215,1728009031873,-3789.03423598,0.00010899,2]
[339810216,1728009031882,-999.99,0.00010899,2]
[339810218,1728009031891,-150.0,0.00010899,2]
[339810220,1728009031901,-11873.2478,0.000109,2]
[339810222,1728009031909,-9324.1889,0.000109,2]
[339810224,1728009031918,-14592.6566,0.000109,2]
[339810226,1728009031927,-150.99,0.000109,2]
[339810228,1728009031936,-10118.02745337,0.000109,2]
[339810230,1728009031945,-6422.0802,0.000109,2]
[339810232,1728009031955,-171.57283776,0.000109,2]
[339810234,1728009031965,-900.0,0.000109,3]
[339810236,1728009031975,-10364.5599435,0.000109,2]
[339810238,1728009031986,-164.97,0.00010959,2]
[339810240,1728009031995,-168.68,0.00010959,2]
[339810243,1728009032004,-156.13,0.00010959,2]
[339810246,1728009032013,-250.0,0.00010959,2]
[339810249,1728009032022,-161.1,0.00010959,2]
[339810252,1728009032031,-508.52817387,0.00010973,2]
[339810255,1728009032039,-500.21790256,0.00010973,2]
[339810277,1728009032186,-508.86174865,0.00010973,2]
[339810279,1728009032198,-556.535,0.00010973,2]
[339810281,1728009032208,-934.0,0.00010973,2]
[339810283,1728009032218,-811.206,0.00010973,2]
[339810285,1728009032227,-404.582,0.00010973,2]
[339810286,1728009032236,-1297.0,0.00010973,2]
[339810287,1728009032245,-559.963,0.00010973,2]
[339810288,1728009032254,-150.0,0.00010973,2]
[339810289,1728009032263,-450.174,0.00010973,2]
[339810290,1728009032273,-398.6277981,0.00010996,2]
[339810291,1728009032283,-2354.7816809,0.00010996,2]
[339810292,1728009032293,-1961.1316446,0.00010996,2]
[339810293,1728009032302,-55445.91580306,0.00011,2]
[339810294,1728009032315,-98855.85781854,0.00011,2]
[339810295,1728009032326,-4805.5876052,0.00011,2]
[339810296,1728009032337,-2534.578025,0.00011,2]
[339810303,1728009037660,-500.3375423,0.00010973,2]
[339810305,1728009037670,-266.15798712,0.0001099,2]
[339810306,1728009037679,-31773.50384247,0.00011,2]
[339810307,1728009037768,-282.4894113,0.00011,2]
[339810309,1728009039702,-626.0,0.00010973,2]
[339810310,1728009039712,-616.66695596,0.00011,2]
[339810311,1728009039723,-3251.89865,0.00011,2]
[339810312,1728009039734,-15000.0,0.00011,2]
[339810313,1728009039834,-325.96594096,0.00011,2]
[339810348,1728009042672,-1602.74999996,0.00011,2]
[339810349,1728009042684,-809.91862239,0.00011,2]
[339810350,1728009042790,-1545.0,0.00011,2]
[339810351,1728009042801,-319649.88331866,0.00011,2]
[339810358,1728009045724,-196.327,0.00010973,2]
[339810359,1728009045734,-2863.623,0.00011,2]
[339810360,1728009045851,-174.66749577,0.00011,2]
[339810362,1728009046048,-6335.11063208,0.00011,2]
[339810363,1728009046059,-1229.9991,0.00011,2]
[339810365,1728009217243,226.07,8.504e-05,2]
[339810367,1728009487135,220.87,0.0001,2]
[339810368,1728009808517,214.76,8.338e-05,2]
[339810369,1728009967194,702.26233,0.0001,2]
[339810386,1728010079986,259.44,0.00010198,2]
[339810388,1728010189157,200.0,0.00010158,2]
[339810394,1728010231758,-170.46,0.00010228,2]
[339810395,1728010231767,-250.0,0.00010228,2]
[339810396,1728010231776,-800.0,0.00010289,2]
[339810397,1728010231786,-198.06,0.00010323,2]
[339810398,1728010231795,-500.0,0.000104,3]
[339810399,1728010231804,-1118.06527095,0.000104,2]
[339810400,1728010231813,-1000.0,0.000105,3]
[339810401,1728010231823,-150.0,0.00010575,2]
[339810402,1728010231833,-1500.0,0.000106,3]
[339810403,1728010231844,-214.76,0.00010602,2]
[339810404,1728010231853,-2000.0,0.000107,3]
[339810405,1728010231862,-151.64,0.000107,2]
[339810406,1728010231871,-300.0,0.00010799,2]
[339810407,1728010231882,-300.0,0.00010799,2]
[339810408,1728010231891,-1108.43881264,0.000108,3]
[339810409,1728010231904,-1391.56118736,0.000108,3]
[339810410,1728010231915,-150.0,0.00010899,2]
[339810411,1728010231924,-161.28046835,0.000109,2]
[339810412,1728010231936,-2990.54914429,0.000109,2]
[339810413,1728010231950,-979.24476573,0.000109,2]
[339810414,1728010231963,-1198.55399975,0.000109,2]
[339810415,1728010231976,-5228.67824423,0.000109,2]
[339810416,1728010231987,-500.0,0.000109,3]
[339810417,1728010231997,-160.59,0.00010959,2]
[339810418,1728010232007,-250.0,0.00010959,2]
[339810419,1728010232018,-271.72,0.00010959,2]
[339810420,1728010232027,-226.43,0.00010959,2]
[339810421,1728010232037,-188.69,0.00010959,2]
[339810422,1728010232047,-157.24,0.00010959,2]
[339810423,1728010232056,-786.24,0.00010959,2]
[339810424,1728010232067,-788.161,0.00010973,2]
[339810425,1728010232077,-626.0,0.00010973,2]
[339810426,1728010232087,-643.005,0.00010973,2]
[339810427,1728010232097,-811.0,0.00010973,2]
[339810428,1728010232108,-150.0,0.00010973,2]
[339810429,1728010232117,-332.2272068,0.00010996,2]
[339810430,1728010232127,-2817.4552009,0.00010996,2]
[339810431,1728010232138,-1000.0,0.00010999,2]
[339810432,1728010232148,-174.42,0.00010999,2]
[339810433,1728010232159,-12208.45848534,0.00010999,2]
[339810434,1728010232169,-150617.19418306,0.00011,2]
[339810435,1728010232190,-572.69291138,0.00011,2]
[339810436,1728010232201,-2110.22546309,0.00011,2]
[339810438,1728010237807,-1017.72082191,0.00011,2]
[339810439,1728010237820,-1185.34288774,0.00011,2]
[339810440,1728010237832,-11793.9856236,0.00011,2]
[339810441,1728010237845,-250.0,0.00011,2]
[339810442,1728010237984,-307.25000024,0.00011,2]
[339810443,1728010237998,-2082.44359574,0.00011,2]
[339810473,1728010240230,-611.92,0.00011,2]
[339810474,1728010240254,-339.55232573,0.00011,2]
[339810475,1728010240266,-1247.57500007,0.00011,2]
[339810476,1728010240279,-2654.30371118,0.00011,2]
[339810484,1728010242863,-6347.47433218,0.00011,2]
[339810488,1728010243016,-319649.88331866,0.00011,2]
[339810489,1728010243028,-3146.9298158,0.00011,2]
[339810490,1728010243040,-1621.5,0.00011,2]
[339810494,1728010246076,-3271.5823569,0.00011,2]
[339810495,1728010246258,-7125.0,0.00011,2]
[339810496,1728010351257,275.0,0.0001,2]
[339810497,1728010365701,500.0,0.0001,2]
[339810498,1728010366025,778.0,0.0001,2]
[339810499,1728010392115,193.28,8.622e-05,2]
[339810500,1728010932551,183.61,8.407e-05,2]
[339810501,1728011137608,300.0,0.0001,3]
[339810502,1728011292608,150.21633,8.323e-05,2]
[339810503,1728011309766,160.0,0.00010144,2]
[339810504,1728011366197,350.0,0.000102,3]
[339810505,1728011431967,-250.0,0.00010236,2]
[339810509,1728011431976,-146.48017172,0.00010341,2]
[339810513,1728011431990,-280.56667432,0.00010341,2]
[339810516,1728011432002,-412.95315396,0.00010341,2]
[339810518,1728011432011,-470.59679604,0.000104,3]
[339810520,1728011432022,-846.47,0.000104,3]
[339810522,1728011432035,-350.2299999,0.000104,3]
[339810528,1728011432175,-732.70320406,0.000104,3]
[339810529,1728011432184,-158.44,0.00010429,2]
[339810530,1728011432194,-60.44083352,0.000105,3]
[339810531,1728011432206,-4739.55916648,0.000105,3]
[339810532,1728011432215,-2932.91284265,0.000106,3]
[339810533,1728011432226,-1856.9894157,0.000106,3]
[339810534,1728011432237,-587.95490175,0.000106,3]
[339810535,1728011432249,-1592.24428763,0.000106,3]
[339810536,1728011432260,-229.89855227,0.000106,3]
[339810537,1728011432271,-183.61,0.00010671,2]
[339810538,1728011432281,-3052.30360444,0.000107,3]
[339810539,1728011432292,-326.597066,0.000107,3]
[339810540,1728011432303,-1543.48046992,0.000107,3]
[339810541,1728011432375,-4677.61885964,0.000107,3]
[339810543,1728011432385,-5751.62698084,0.000108,3]
[339810554,1728011438111,-6248.37301916,0.000108,3]
[339810555,1728011438121,-150.0,0.00010888,2]
[339810556,1728011438131,-150.0,0.00010899,2]
[339810557,1728011438140,-161.28046835,0.000109,2]
[339810558,1728011438152,-278.3141,0.000109,2]
[339810559,1728011438161,-471.7099,0.000109,2]
[339810560,1728011438171,-1256.46309397,0.000109,2]
[339810561,1728011438180,-1256.46309397,0.000109,2]
[339810562,1728011438190,-913.4699,0.000109,2]
[339810563,1728011438200,-6841.41058407,0.000109,2]
[339810564,1728011438212,-630.87780067,0.000109,2]
[339810565,1728011438223,-843.67238239,0.000109,2]
[339810566,1728011438291,-1695.58212262,0.000109,2]
[339810567,1728011438300,-1542.55277738,0.000109,3]
[339810568,1728011440050,-857.44722262,0.000109,3]
[339810570,1728011440060,-279.355,0.000109,2]
[339810571,1728011440072,-156.28777738,0.00010959,2]
[339810572,1728011440083,-8.13222262,0.00010959,2]
[339810575,1728011440092,-250.0,0.00010959,2]
[339810576,1728011440102,-168.68,0.00010959,2]
[339810577,1728011440111,-150.12,0.00010973,2]
[339810578,1728011440120,-131.31227101,0.00010973,2]
[339810579,1728011440131,-18.76672899,0.00010973,2]
[339810580,1728011440140,-152.123,0.00010973,2]
[339810581,1728011440151,-150.069,0.00010973,2]
[339810582,1728011440159,-252.558,0.00010973,2]
[339810583,1728011440169,-174.421,0.0001098,2]
[339810584,1728011440178,-2527.2009661,0.00010996,2]
[339810585,1728011440187,-298.00116,0.00010996,2]
[339810586,1728011440197,-165.40467504,0.00010998,2]
[339810587,1728011440206,-1000.0,0.00010999,2]
[339810588,1728011440216,-1496.79129645,0.00011,2]
[339810589,1728011440362,-34886.82477072,0.00011,2]
[339810590,1728011440374,-3241.38815,0.00011,2]
[339810609,1728011443114,-27508.08392612,0.00011,2]
[339810610,1728011443127,-293.44999981,0.00011,2]
[339810611,1728011443140,-319649.88331866,0.00011,2]
[339810612,1728011443295,-9718.74312821,0.00011,2]
[339810613,1728011443461,-4750.00000002,0.00011,2]
[339810616,1728011446047,-2905.771836,0.00011,2]
[339810617,1728011446223,-7368.6299918,0.00011,2]
[339810618,1728011446234,-423.99958734,0.00011,2]
[339810619,1728011446246,-1552.725,0.00011,2]
[339810620,1728011446395,-3159.64043405,0.00011,2]
[339810621,1728011446406,-1221.7588,0.00011,2]
[339810624,1728011469437,165.24,9.065e-05,2]
[339810625,1728011474162,300.0,0.0001022,3]
[339810626,1728011488758,4212.9226,0.00010136,2]
[339810628,1728011600393,250.0,0.0002,120]
[339810629,1728011607926,2500.0,0.0002,120]
[339810630,1728011805124,299.5,8.724e-05,2]
[339810632,1728011977620,156.97,8.874e-05,2]
[339810633,1728012342027,-750.197829,0.00010663,2]
[339810634,1728012342048,-249.802171,0.00010717,2]
[339810635,1728012344478,-0.197829,0.00010717,2]
[339810636,1728012344501,-158.46007982,0.000108,2]
[339810637,1728012344528,-243.29,0.00010876,2]
[339810638,1728012344548,-150.0,0.00010899,2]
[339810639,1728012344568,-448.05209118,0.000109,2]
[339810640,1728012348321,-1000.0,0.000109,2]
[339810641,1728012349801,-1000.0,0.000109,2]
[339810642,1728012354398,-700.0,0.000109,2]
[339810664,1728012509366,156.97,8.651e-05,2]
[339810678,1728012632258,-500.0,0.000104,3]
[339810679,1728012632267,-1000.0,0.000105,3]
[339810680,1728012632277,-1500.0,0.000106,3]
[339810681,1728012632286,-327.66179533,0.00010605,2]
[339810682,1728012632381,-581.50084016,0.00010605,2]
[339810683,1728012632393,-90.83736451,0.00010605,2]
[339810684,1728012632403,-2100.0,0.000107,3]
[339810685,1728012632416,-1727.9999997,0.000107,2]
[339810686,1728012632427,-2600.0,0.000108,3]
[339810687,1728012632440,-150.0,0.00010899,2]
[339810688,1728012632452,-360.84860882,0.000109,2]
[339810689,1728012632463,-6761.32402697,0.000109,2]
[339810690,1728012632510,-2249.06457376,0.000109,2]
[339810691,1728012632521,-500.0,0.000109,3]
[339810692,1728012632531,-1002.79053094,0.000109,2]
[339810693,1728012632541,-836.3103,0.000109,2]
[339810694,1728012632552,-494.8099,0.000109,2]
[339810695,1728012632563,-161.0,0.00010959,2]
[339810696,1728012632573,-144.38982745,0.00010959,2]
[339810697,1728012632586,-16.20017255,0.00010959,2]
[339810698,1728012632601,-150.99,0.00010967,2]
[339810699,1728012632611,-999.99,0.00010967,2]
[339810700,1728012632622,-679.3697684,0.00010996,2]
[339810701,1728012632633,-5761.4001733,0.00010996,2]
[339810702,1728012632643,-174.421,0.00010998,2]
[339810703,1728012632654,-9125.70158638,0.00011,2]
[339810710,1728012638334,-27422.6983379,0.00011,2]
[339810711,1728012638467,-1070.1255496,0.00011,2]
[339810744,1728012640364,-9.31009539,0.00011,2]
[339810745,1728012640408,-9096.64373114,0.00011,2]
[339810746,1728012640420,-8947.21879473,0.00011,2]
[339810747,1728012640433,-8943.78386462,0.00011,2]
[339810748,1728012640446,-9077.54866152,0.00011,2]
[339810749,1728012640458,-8943.84023489,0.00011,2]
[339810750,1728012640470,-3706.34653638,0.00011,2]
[339810751,1728012640483,-79577.38168413,0.00011,2]
[339810752,1728012640497,-1816.06705901,0.00011,2]
[339810753,1728012640538,-1452.25846956,0.00011,2]
[339810756,1728012643260,-4397.15146631,0.00011,2]
[339810757,1728012643566,-509.44728721,0.00011,2]
[339810760,1728012643580,-301.25385499,0.00011,2]
[339810761,1728012643594,-2151.55353911,0.00011,2]
[339810762,1728012643608,-2496.44299334,0.00011,2]
[339810764,1728012646271,-281.069783,0.00011,2]
[339810765,1728012646399,-6108.86189376,0.00011,2]
[339810766,1728012646412,-6222.99803238,0.00011,2]
[339810770,1728012937676,3129.98,9.966e-05,2]
[339810772,1728013042946,658.5,9.945e-05,2]
[339810773,1728013055386,215.98,8.219e-05,2]
[339810774,1728013067796,23900.0,9.936e-05,2]
[339810775,1728013074567,5550.19,9.936e-05,2]
[339810776,1728013109998,700.34,9.926e-05,2]
[339810777,1728013173984,174.13,7.949e-05,2]
[339810778,1728013218028,250.0,9.921e-05,2]
[339810779,1728013258116,158.44,9.928e-05,2]
[339810780,1728013262965,1000.0,9.921e-05,2]
[339810781,1728013316842,244.36,9.928e-05,2]
[339810782,1728013424589,679.1,9.932e-05,2]
[339810783,1728013561480,250.0,9.934e-05,2]
[339810784,1728013571188,-828.5092,0.00010427,2]
[339810785,1728013585907,205.18,8.219e-05,2]
[339810786,1728013614373,-1000.0,0.00010427,2]
[339810787,1728013616133,-1000.0,0.00010427,2]
[339810788,1728013619147,-1000.0,0.00010427,2]
[339810789,1728013621750,-1000.0,0.00010427,2]
[339810790,1728013628548,-550.0,0.00010427,2]
[339810806,1728013767680,622.0,9.932e-05,2]
[339810816,1728013832233,-300.0,0.00010426,2]
[339810817,1728013832242,-1903.60884502,0.00010427,2]
[339810818,1728013832254,-2717.88195498,0.00010427,2]
[339810819,1728013832264,-10000.0,0.00010427,2]
[339810820,1728013832274,-205.18,0.00010472,2]
[339810821,1728013832283,-2222.48046645,0.0001048,2]
[339810822,1728013832292,-164.49,0.0001048,2]
[339810823,1728013832302,-150.0,0.00010822,2]
[339810824,1728013832311,-159.17,0.00010835,2]
[339810825,1728013832321,-159.17,0.00010839,2]
[339810826,1728013832330,-159.17,0.00010843,2]
[339810827,1728013832340,-159.17,0.00010847,2]
[339810828,1728013832350,-659.95,0.00010851,2]
[339810829,1728013832359,-554.96,0.00010851,2]
[339810830,1728013832368,-3244.27,0.00010851,2]
[339810831,1728013832377,-499.99,0.00010851,2]
[339810832,1728013832386,-159.17,0.00010851,2]
[339810833,1728013832396,-150.0,0.00010854,2]
[339810834,1728013832405,-159.17,0.00010855,2]
[339810835,1728013832415,-858.42,0.00010855,2]
[339810836,1728013832424,-159.17,0.00010858,2]
[339810837,1728013832433,-159.17,0.00010862,2]
[339810839,1728013832445,-159.17,0.00010866,2]
[339810841,1728013832454,-159.17,0.0001087,2]
[339810842,1728013832463,-159.17,0.00010874,2]
[339810843,1728013832473,-159.17,0.00010878,2]
[339810844,1728013832482,-159.17,0.00010882,2]
[339810845,1728013832491,-159.17,0.00010885,2]
[339810846,1728013832500,-159.17,0.00010889,2]
[339810847,1728013832509,-4150.67889719,0.0001089,2]
[339810848,1728013832518,-1335.91619851,0.00010899,2]
[339810849,1728013832528,-10805.207443,0.000109,2]
[339810850,1728013832537,-3613.1808,0.000109,2]
[339810852,1728013832547,-3288.5772,0.000109,2]
[339810854,1728013832556,-174.421,0.000109,2]
[339810856,1728013832566,-4311.7504,0.000109,2]
[339810858,1728013832575,-8886.35174856,0.000109,2]
[339810860,1728013832585,-921.2613,0.000109,2]
[339810862,1728013832594,-1679.0273,0.000109,2]
[339810864,1728013832603,-157.53,0.00010959,2]
[339810866,1728013832612,-381.36,0.00010959,2]
[339810868,1728013832622,-76.79090845,0.00010959,2]
[339810871,1728013832637,-173.20909155,0.00010959,2]
[339810873,1728013832646,-126.78090845,0.00010959,2]
[339810875,1728013832660,-23.21909155,0.00010959,2]
[339810877,1728013832669,-670.28490845,0.00010973,2]
[339810879,1728013838279,-2562.729792,0.00010427,2]
[339810880,1728013838368,-7437.270208,0.00010427,2]
[339810881,1728013838380,-185.77009155,0.00010973,2]
[339810882,1728013838389,-1178.713,0.00010973,2]
[339810883,1728013838399,-1000.0,0.00010989,2]
[339810884,1728013838408,-1000.0,0.00010989,2]
[339810885,1728013838418,-1000.0,0.00010989,2]
[339810886,1728013838427,-1000.0,0.00010989,2]
[339810887,1728013838436,-1000.0,0.00010989,2]
[339810888,1728013838447,-860.7062,0.00010989,2]
[339810889,1728013838456,-152.43,0.0001099,2]
[339810890,1728013838466,-157.5884791,0.00010996,2]
[339810891,1728013838476,-2253.8923866,0.00010996,2]
[339810892,1728013838486,-246.81136992,0.00010999,2]
[339810893,1728013838496,-3155.34936454,0.00010999,2]
[339810894,1728013838505,-171822.35990322,0.00011,2]
[339810895,1728013838515,-230750.83595156,0.00011,2]
[339810896,1728013838524,-420989.34585422,0.00011,2]
[339810897,1728013838535,-560.50565751,0.00011,2]
[339810900,1728013840453,-38.13672758,0.00010427,2]
[339810906,1728014143732,208.73,8.347e-05,2]
[339810907,1728014241023,173.23,8.139e-05,2]
[339810908,1728014268305,250.0,0.00010174,2]
[339810909,1728014425810,173.63,0.00010203,2]
[339810910,1728014434148,339.55,0.00010203,2]
[339810911,1728014616964,492.8025774,0.00010217,2]
[339810912,1728014642226,250.0,0.00010211,2]
[339810913,1728014688727,198.29,8.359e-05,2]
[339810916,1728015029701,3094.7789,0.00010141,2]
[339810922,1728015031510,-4305.94,0.00010241,2]
[339810923,1728015031520,-158.44,0.00010258,2]
[339810924,1728015031530,-562.44,0.00010293,2]
[339810925,1728015031539,-1000.0,0.00010293,2]
[339810926,1728015031548,-169.77,0.00010296,2]
[339810927,1728015031557,-3189.57649262,0.00010428,2]
[339810928,1728015031567,-198.29,0.00010623,2]
[339810929,1728015031576,-1616.6193,0.000108,2]
[339810930,1728015031585,-2060.92420738,0.0001089,2]
[339810931,1728015031596,-3097.32660986,0.0001089,2]
[339810932,1728015031619,-314.83970149,0.0001089,2]
[339810936,1728015037504,-2910.29277304,0.0001089,2]
[339810977,1728015039435,-1149.96,0.0001089,2]
[339810979,1728015041203,-1665.79949881,0.0001089,2]
[339810980,1728015041214,-150.0,0.00010899,2]
[339810981,1728015041222,-3002.31387943,0.00010899,2]
[339810982,1728015041362,-681.26488617,0.00010899,2]
[339810983,1728015041374,-413.07,0.00010899,2]
[339810985,1728015042511,-295.86000036,0.00010899,2]
[339810986,1728015042524,-3631.79812244,0.00010899,2]
[339810987,1728015042533,-500.0,0.000109,2]
[339810988,1728015042544,-14535.37854308,0.000109,2]